{"text_format":"3","workbook":"xlsx","n_sheets":2,"sheets":["Start","Faktura för tjänster"],"not_rendered":{"images":1,"defined_names":1},"read":"whole","date_system":"1900"}

{"sheet":"Start","index":0,"n_rows":8,"n_cols":2,"rows_kept":8}
[null,"OM DEN HÄR MALLEN"]
[null,"Använd den här mallen för att skapa en tjänstefaktura."]
[null,"Fyll i fakturanummer, datum, företagets namn, adress, slogan och information om var fakturan ska skickas."]
[null,"Ange information i tabellerna."]
[null,"Summan beräknas automatiskt åt dig."]
[null,"Obs! "]
[null,"Ytterligare anvisningar finns i kolumn A i kalkylbladet TJÄNSTEFAKTURA. Den här texten har avsiktligt dolts. Om du vill ta bort texten markerar du kolumn A och väljer sedan TA BORT. Om du vill att texten ska visas markerar du kolumn A och ändrar sedan teckenfärg."]
[null,"För mer information om tabeller trycker du på SKIFT och sedan på F10 i en tabell. Välj alternativet TABELL och sedan ALTERNATIVTEXT."]

{"sheet":"Faktura för tjänster","index":1,"n_rows":45,"n_cols":5,"rows_kept":45,"merged":[[0,1,0,2],[0,3,0,4],[2,1,2,3],[3,1,3,3],[4,1,4,2],[5,1,5,2],[6,1,6,2],[7,1,7,2],[42,1,42,2],[42,3,42,4],[44,1,44,4]]}
[null,"Platshållare för logotypen finns i den här cellen.",null,"FAKTURA"]
[]
[null,"Företagets namn"]
[null,"Företagets slogan"]
[null,"Gatuadress",null,"FAKTURANR:","Nr"]
[null,"Postnummer och ort",null,"DATUM ",{"$f":"TODAY()","v":"2022-04-27"}]
[null,"Telefon Fax",null,"KUNDNUMMER ","ID"]
[null,"E-post"]
[null,"TILL","Namn"]
[null,null,"Företagets namn"]
[null,null,"Gatuadress"]
[null,null,"Postnummer och ort"]
[null,null,"Telefon"]
[null,"SÄLJARE","BEFATTNING","BETALNINGSVILLKOR","FÖRFALLODATUM"]
[{"$nulls":3},"Betalas vid leverans"]
[]
[null,"ANTAL","BESKRIVNING","ENHETSPRIS","RADSUMMA"]
[{"$nulls":4},{"$f":"IF(SUM(B18)>0,SUM(B18*'Faktura för tjänster'!$D18),\"\")","v":""}]
[{"$nulls":4},{"$f":"IF(SUM(B19)>0,SUM(B19*'Faktura för tjänster'!$D19),\"\")","v":""}]
[{"$nulls":4},{"$f":"IF(SUM(B20)>0,SUM(B20*'Faktura för tjänster'!$D20),\"\")","v":""}]
[{"$nulls":4},{"$f":"IF(SUM(B21)>0,SUM(B21*'Faktura för tjänster'!$D21),\"\")","v":""}]
[{"$nulls":4},{"$f":"IF(SUM(B22)>0,SUM(B22*'Faktura för tjänster'!$D22),\"\")","v":""}]
[{"$nulls":4},{"$f":"IF(SUM(B23)>0,SUM(B23*'Faktura för tjänster'!$D23),\"\")","v":""}]
[{"$nulls":4},{"$f":"IF(SUM(B24)>0,SUM(B24*'Faktura för tjänster'!$D24),\"\")","v":""}]
[{"$nulls":4},{"$f":"IF(SUM(B25)>0,SUM(B25*'Faktura för tjänster'!$D25),\"\")","v":""}]
[{"$nulls":4},{"$f":"IF(SUM(B26)>0,SUM(B26*'Faktura för tjänster'!$D26),\"\")","v":""}]
[{"$nulls":4},{"$f":"IF(SUM(B27)>0,SUM(B27*'Faktura för tjänster'!$D27),\"\")","v":""}]
[{"$nulls":4},{"$f":"IF(SUM(B28)>0,SUM(B28*'Faktura för tjänster'!$D28),\"\")","v":""}]
[{"$nulls":4},{"$f":"IF(SUM(B29)>0,SUM(B29*'Faktura för tjänster'!$D29),\"\")","v":""}]
[{"$nulls":4},{"$f":"IF(SUM(B30)>0,SUM(B30*'Faktura för tjänster'!$D30),\"\")","v":""}]
[{"$nulls":4},{"$f":"IF(SUM(B31)>0,SUM(B31*'Faktura för tjänster'!$D31),\"\")","v":""}]
[{"$nulls":4},{"$f":"IF(SUM(B32)>0,SUM(B32*'Faktura för tjänster'!$D32),\"\")","v":""}]
[{"$nulls":4},{"$f":"IF(SUM(B33)>0,SUM(B33*'Faktura för tjänster'!$D33),\"\")","v":""}]
[{"$nulls":4},{"$f":"IF(SUM(B34)>0,SUM(B34*'Faktura för tjänster'!$D34),\"\")","v":""}]
[{"$nulls":4},{"$f":"IF(SUM(B35)>0,SUM(B35*'Faktura för tjänster'!$D35),\"\")","v":""}]
[{"$nulls":4},{"$f":"IF(SUM(B36)>0,SUM(B36*'Faktura för tjänster'!$D36),\"\")","v":""}]
[{"$nulls":4},{"$f":"IF(SUM(B37)>0,SUM(B37*'Faktura för tjänster'!$D37),\"\")","v":""}]
[{"$nulls":4},{"$f":"IF(SUM(B38)>0,SUM(B38*'Faktura för tjänster'!$D38),\"\")","v":""}]
[{"$nulls":3},"DELSUMMA",{"$f":"IF(SUM(E19:E38)>0,SUM(E19:E38),\"\")","v":""}]
[{"$nulls":3},"MOMS"]
[{"$nulls":3},"SUMMA",{"$f":"IF(SUM(E39)>0,SUM((E39*E40)+E39),\"\")","v":""}]
[]
[null,"Alla checkar ska ställas ut till",null,{"$f":"B3","v":"Företagets namn"}]
[]
[null,"TACK FÖR DIN BESTÄLLNING!"]